[Event "*** Titled Tuesday Blitz"]
[Site "Chess.com"]
[Date "2018.11.06"]
[Round "4"]
[White "TigranLPetrosyan"]
[Black "SergeiAza"]
[Result "1-0"]
[WhiteElo "2831"]
[BlackElo "2803"]
[TimeControl "180+2"]
[EndTime "13:52:17 PST"]
[Termination "TigranLPetrosyan won by resignation"]

1. Nf3 {[%clk 0:03:01.4]} 1... Nf6 {[%clk 0:03:00.5]} 2. g3 {[%clk 0:03:03.3]}
2... b6 {[%clk 0:03:01.3]} 3. Bg2 {[%clk 0:03:04.9]} 3... Bb7 {[%clk 0:03:03]}
4. d3 {[%clk 0:03:06.6]} 4... c5 {[%clk 0:03:01.7]} 5. e4 {[%clk 0:03:07.6]}
5... d6 {[%clk 0:03:00.6]} 6. O-O {[%clk 0:03:06.4]} 6... Nc6 {[%clk 0:03:01.3]}
7. Re1 {[%clk 0:02:53.8]} 7... e6 {[%clk 0:02:48.5]} 8. Nc3 {[%clk 0:02:47.5]}
8... Be7 {[%clk 0:02:47]} 9. e5 {[%clk 0:02:48.1]} 9... dxe5 {[%clk 0:02:39.8]}
10. Nxe5 {[%clk 0:02:50]} 10... Qc8 {[%clk 0:02:32]} 11. Qf3 {[%clk 0:02:35.6]}
11... Na5 {[%clk 0:02:21]} 12. Ne4 {[%clk 0:02:23.5]} 12... O-O {[%clk
0:02:18.2]} 13. Qe2 {[%clk 0:02:24.1]} 13... Nc6 {[%clk 0:02:10.2]} 14. Nxc6
{[%clk 0:02:18.7]} 14... Bxc6 {[%clk 0:02:09.7]} 15. Bg5 {[%clk 0:02:20.2]}
15... Nxe4 {[%clk 0:01:54.1]} 16. Bxe7 {[%clk 0:02:21]} 16... Re8 {[%clk
0:01:55.7]} 17. dxe4 {[%clk 0:02:22.5]} 17... Rxe7 {[%clk 0:01:56.6]} 18. Rad1
{[%clk 0:02:24.4]} 18... e5 {[%clk 0:01:48.8]} 19. Rd6 {[%clk 0:02:15.6]} 19...
Qc7 {[%clk 0:01:38.2]} 20. Red1 {[%clk 0:02:16.6]} 20... Rd7 {[%clk 0:01:25.5]}
21. Rxd7 {[%clk 0:02:12.2]} 21... Bxd7 {[%clk 0:01:26.6]} 22. Qd3 {[%clk
0:02:08.9]} 22... Be6 {[%clk 0:01:27.2]} 23. h4 {[%clk 0:01:52.4]} 23... h6
{[%clk 0:01:24.5]} 24. Kh2 {[%clk 0:01:52.8]} 24... c4 {[%clk 0:01:11.7]} 25.
Qc3 {[%clk 0:01:46.1]} 25... Rd8 {[%clk 0:00:52.8]} 26. Rxd8+ {[%clk 0:01:33.4]}
26... Qxd8 {[%clk 0:00:54.2]} 27. Qxe5 {[%clk 0:01:33.8]} 27... Qd2 {[%clk
0:00:55.7]} 28. f4 {[%clk 0:01:34.9]} 28... Bg4 {[%clk 0:00:52.3]} 29. Qc3
{[%clk 0:01:28.4]} 29... Qxc3 {[%clk 0:00:48.7]} 30. bxc3 {[%clk 0:01:29.1]}
30... Bd1 {[%clk 0:00:50.1]} 31. e5 {[%clk 0:01:12.6]} 31... Bxc2 {[%clk
0:00:51.2]} 32. Kg1 {[%clk 0:01:14]} 32... b5 {[%clk 0:00:35.3]} 33. Kf2 {[%clk
0:01:14.2]} 33... a5 {[%clk 0:00:32.3]} 34. a3 {[%clk 0:01:11.5]} 34... b4
{[%clk 0:00:18.6]} 35. cxb4 {[%clk 0:01:12.2]} 35... axb4 {[%clk 0:00:19.9]} 36.
axb4 {[%clk 0:01:14.1]} 36... c3 {[%clk 0:00:21.1]} 37. Ke3 {[%clk 0:01:14.4]}
37... Ba4 {[%clk 0:00:18.9]} 38. Kd3 {[%clk 0:01:06.1]} 38... c2 {[%clk
0:00:19.7]} 39. Kd2 {[%clk 0:01:07.5]} 39... Kf8 {[%clk 0:00:21.6]} 40. Be4
{[%clk 0:01:08.5]} 40... Ke7 {[%clk 0:00:23.3]} 41. Bxc2 {[%clk 0:01:09.8]} 1-0

[Event "*** Titled Tuesday Blitz"]
[Site "Chess.com"]
[Date "2018.11.06"]
[Round "4"]
[White "xpto15"]
[Black "AsaHoffmann"]
[Result "0-1"]
[WhiteElo "1303"]
[BlackElo "2062"]
[TimeControl "180+2"]
[EndTime "13:52:17 PST"]
[Termination "AsaHoffmann won by resignation"]

1. e4 {[%clk 0:03:01.9]} 1... d6 {[%clk 0:02:59.1]} 2. d4 {[%clk 0:03:00.9]}
2... Nf6 {[%clk 0:02:59.1]} 3. Nc3 {[%clk 0:03:01.9]} 3... c6 {[%clk 0:02:59.4]}
4. Nf3 {[%clk 0:02:56.2]} 4... Bg4 {[%clk 0:02:58.6]} 5. h3 {[%clk 0:02:54.8]}
5... Bh5 {[%clk 0:02:58.8]} 6. g4 {[%clk 0:02:54.2]} 6... Bg6 {[%clk 0:02:59.1]}
7. Bd3 {[%clk 0:02:54]} 7... e6 {[%clk 0:02:59.6]} 8. Qe2 {[%clk 0:02:52.4]}
8... d5 {[%clk 0:02:59.4]} 9. e5 {[%clk 0:02:51.1]} 9... Nfd7 {[%clk 0:02:58.1]}
10. Bxg6 {[%clk 0:02:46.9]} 10... hxg6 {[%clk 0:02:52.4]} 11. Bf4 {[%clk
0:02:46.2]} 11... a6 {[%clk 0:02:52.2]} 12. h4 {[%clk 0:02:45.1]} 12... c5
{[%clk 0:02:52.4]} 13. h5 {[%clk 0:02:43.9]} 13... Nc6 {[%clk 0:02:51.6]} 14.
dxc5 {[%clk 0:02:40.3]} 14... Bxc5 {[%clk 0:02:51]} 15. Rd1 {[%clk 0:02:37.8]}
15... Qa5 {[%clk 0:02:49.2]} 16. Kf1 {[%clk 0:02:38.1]} 16... O-O-O {[%clk
0:02:41.4]} 17. a3 {[%clk 0:02:38.6]} 17... Qc7 {[%clk 0:02:33]} 18. Kg2 {[%clk
0:02:30.7]} 18... gxh5 {[%clk 0:02:32.4]} 19. gxh5 {[%clk 0:02:29.7]} 19... f6
{[%clk 0:02:28.5]} 20. b4 {[%clk 0:02:02.9]} 20... Ba7 {[%clk 0:02:09.3]} 21. b5
{[%clk 0:01:28.8]} 21... Ncxe5 {[%clk 0:02:07.4]} 22. bxa6 {[%clk 0:01:17.6]}
22... Qxc3 {[%clk 0:01:59.2]} 23. axb7+ {[%clk 0:01:11.4]} 23... Kxb7 {[%clk
0:01:59.4]} 24. Rb1+ {[%clk 0:01:11.5]} 24... Bb6 {[%clk 0:02:00.2]} 25. Rb3
{[%clk 0:01:09.2]} 25... Qc4 {[%clk 0:01:52.7]} 26. Qe3 {[%clk 0:00:53.6]} 26...
Nc5 {[%clk 0:01:40.2]} 27. Rxb6+ {[%clk 0:00:53.5]} 27... Kxb6 {[%clk
0:01:39.7]} 28. Rb1+ {[%clk 0:00:54.4]} 28... Ka6 {[%clk 0:01:35.8]} 29. Rb4
{[%clk 0:00:30.2]} 29... Qxc2 {[%clk 0:01:29.6]} 30. Bxe5 {[%clk 0:00:14.3]}
30... fxe5 {[%clk 0:01:29.3]} 31. Nxe5 {[%clk 0:00:15.7]} 31... Rxh5 {[%clk
0:01:21.8]} 32. Qf4 {[%clk 0:00:10]} 32... Rf5 {[%clk 0:01:14.1]} 33. Qg3 {[%clk
0:00:09.2]} 33... Rdf8 {[%clk 0:01:13]} 34. Ng4 {[%clk 0:00:04.2]} 34... Ne4
{[%clk 0:01:07.9]} 35. Qe3 {[%clk 0:00:05.4]} 35... Rxf2+ {[%clk 0:01:06.7]} 36.
Kh3 {[%clk 0:00:03.7]} 36... R2f3+ {[%clk 0:01:06.1]} 0-1

[Event "*** Titled Tuesday Blitz"]
[Site "Chess.com"]
[Date "2018.11.06"]
[Round "4"]
[White "ZeroRealtorFade"]
[Black "novocane"]
[Result "1-0"]
[WhiteElo "2227"]
[BlackElo "2166"]
[TimeControl "180+2"]
[EndTime "13:52:21 PST"]
[Termination "ZeroRealtorFade won by resignation"]

1. d4 {[%clk 0:03:00.9]} 1... Nf6 {[%clk 0:03:00.6]} 2. Bf4 {[%clk 0:03:02]}
2... e6 {[%clk 0:03:01.3]} 3. e3 {[%clk 0:03:03.3]} 3... c5 {[%clk 0:03:02.2]}
4. c3 {[%clk 0:03:04.5]} 4... Be7 {[%clk 0:03:02.7]} 5. Nd2 {[%clk 0:03:05.2]}
5... b6 {[%clk 0:03:01]} 6. Ngf3 {[%clk 0:03:05.5]} 6... Bb7 {[%clk 0:03:00.6]}
7. Bd3 {[%clk 0:03:06.6]} 7... cxd4 {[%clk 0:02:59.2]} 8. exd4 {[%clk
0:03:07.4]} 8... d6 {[%clk 0:02:59.7]} 9. O-O {[%clk 0:03:07.4]} 9... O-O {[%clk
0:02:59.5]} 10. Re1 {[%clk 0:03:07.6]} 10... Nc6 {[%clk 0:02:57.5]} 11. Ne4
{[%clk 0:03:02.9]} 11... Re8 {[%clk 0:02:19.4]} 12. Neg5 {[%clk 0:02:42.5]}
12... h6 {[%clk 0:02:11.5]} 13. Ne4 {[%clk 0:02:33.9]} 13... Rb8 {[%clk
0:01:59.8]} 14. Qd2 {[%clk 0:02:26]} 14... Nxe4 {[%clk 0:01:56.3]} 15. Bxe4
{[%clk 0:02:26.2]} 15... Bf8 {[%clk 0:01:41.9]} 16. Bc2 {[%clk 0:02:16.3]} 16...
Ne7 {[%clk 0:01:07.7]} 17. Qd3 {[%clk 0:02:11.9]} 17... g6 {[%clk 0:01:08.1]}
18. Ba4 {[%clk 0:02:02.3]} 18... Bc6 {[%clk 0:01:04.9]} 19. Bxc6 {[%clk
0:01:58.9]} 19... Nxc6 {[%clk 0:01:05.3]} 20. Qd2 {[%clk 0:01:42.5]} 20... Kh7
{[%clk 0:00:38.7]} 21. Bg3 {[%clk 0:01:35.5]} 21... Ne7 {[%clk 0:00:29.2]} 22.
Bf4 {[%clk 0:01:29.6]} 22... Qd7 {[%clk 0:00:22.4]} 23. Qd3 {[%clk 0:01:25]}
23... Bg7 {[%clk 0:00:20.9]} 24. h4 {[%clk 0:01:15.4]} 24... b5 {[%clk
0:00:19.2]} 25. h5 {[%clk 0:01:09.2]} 25... Nd5 {[%clk 0:00:20.3]} 26. Bd2
{[%clk 0:01:04.3]} 26... Nf6 {[%clk 0:00:21.1]} 27. hxg6+ {[%clk 0:01:02.7]}
27... fxg6 {[%clk 0:00:23]} 28. Nh4 {[%clk 0:00:59.9]} 28... Qf7 {[%clk
0:00:24.1]} 29. Re3 {[%clk 0:00:54.9]} 29... b4 {[%clk 0:00:23.7]} 30. Rg3
{[%clk 0:00:49.4]} 30... Rf8 {[%clk 0:00:13.6]} 31. Nxg6 {[%clk 0:00:43.6]} 1-0

[Event "*** Titled Tuesday Blitz"]
[Site "Chess.com"]
[Date "2018.11.06"]
[Round "4"]
[White "ChessicallyInclined"]
[Black "CarlssonLudvig"]
[Result "0-1"]
[WhiteElo "2380"]
[BlackElo "2268"]
[TimeControl "180+2"]
[EndTime "13:52:21 PST"]
[Termination "CarlssonLudvig won by resignation"]

1. e4 {[%clk 0:03:01.9]} 1... e5 {[%clk 0:03:00.4]} 2. Nf3 {[%clk 0:03:02]} 2...
Nc6 {[%clk 0:03:01]} 3. Bb5 {[%clk 0:03:03.3]} 3... Bb4 {[%clk 0:03:01.4]} 4. c3
{[%clk 0:03:00.6]} 4... Ba5 {[%clk 0:03:02.3]} 5. a4 {[%clk 0:02:57.8]} 5... a6
{[%clk 0:02:49.4]} 6. Bxc6 {[%clk 0:02:54.1]} 6... dxc6 {[%clk 0:02:50]} 7. b4
{[%clk 0:02:52.5]} 7... Bb6 {[%clk 0:02:50.7]} 8. a5 {[%clk 0:02:44]} 8... Ba7
{[%clk 0:02:50.9]} 9. Nxe5 {[%clk 0:02:42.3]} 9... Qg5 {[%clk 0:02:42.6]} 10. d4
{[%clk 0:02:33.2]} 10... Qxg2 {[%clk 0:02:41.8]} 11. Qf3 {[%clk 0:02:34.2]}
11... Qxf3 {[%clk 0:02:41.6]} 12. Nxf3 {[%clk 0:02:36.1]} 12... Nf6 {[%clk
0:02:37.9]} 13. Nbd2 {[%clk 0:02:32]} 13... O-O {[%clk 0:02:38.1]} 14. Ke2
{[%clk 0:02:07.7]} 14... Re8 {[%clk 0:02:34.1]} 15. Kd3 {[%clk 0:02:07]} 15...
Bg4 {[%clk 0:02:31.4]} 16. Ne5 {[%clk 0:02:06.5]} 16... Be6 {[%clk 0:02:29.2]}
17. f3 {[%clk 0:02:05.2]} 17... Rad8 {[%clk 0:02:27.4]} 18. Kc2 {[%clk 0:01:59]}
18... Nd7 {[%clk 0:02:24]} 19. Nd3 {[%clk 0:01:59.3]} 19... Ra8 {[%clk
0:02:19.9]} 20. Nb3 {[%clk 0:01:51.7]} 20... b6 {[%clk 0:02:20.1]} 21. axb6
{[%clk 0:01:50.4]} 21... Bxb6 {[%clk 0:02:20.7]} 22. Na5 {[%clk 0:01:49.2]}
22... Bxa5 {[%clk 0:02:12.8]} 23. Rxa5 {[%clk 0:01:48]} 23... Bc4 {[%clk
0:02:13.7]} 24. Bf4 {[%clk 0:01:41.6]} 24... Rac8 {[%clk 0:02:08.7]} 25. Nc5
{[%clk 0:01:31.9]} 25... Nxc5 {[%clk 0:01:59.9]} 26. Rxc5 {[%clk 0:01:33.8]}
26... Be2 {[%clk 0:02:01.1]} 27. e5 {[%clk 0:01:00.9]} 27... Bxf3 {[%clk
0:01:59.7]} 28. Re1 {[%clk 0:01:00.9]} 28... f5 {[%clk 0:01:54]} 29. Ra1 {[%clk
0:00:48]} 29... Ra8 {[%clk 0:01:49.4]} 30. Rg1 {[%clk 0:00:33.5]} 30... Kf7
{[%clk 0:01:45.9]} 31. Rg3 {[%clk 0:00:25.8]} 31... Be4+ {[%clk 0:01:46.4]} 32.
Kb3 {[%clk 0:00:26.1]} 32... Re6 {[%clk 0:01:46]} 33. h4 {[%clk 0:00:21.7]}
33... Rg6 {[%clk 0:01:46.1]} 34. Rxg6 {[%clk 0:00:21.4]} 34... Kxg6 {[%clk
0:01:46.9]} 35. c4 {[%clk 0:00:19.6]} 35... Kh5 {[%clk 0:01:44]} 36. Bg5 {[%clk
0:00:20.4]} 36... h6 {[%clk 0:01:43.4]} 37. Be7 {[%clk 0:00:19]} 37... Re8
{[%clk 0:01:44.2]} 38. Bd6 {[%clk 0:00:09.7]} 38... cxd6 {[%clk 0:01:44]} 39.
exd6 {[%clk 0:00:11.6]} 39... Rd8 {[%clk 0:01:45.3]} 40. Ra5 {[%clk 0:00:10.5]}
40... Rxd6 {[%clk 0:01:45]} 41. Rxa6 {[%clk 0:00:11.8]} 41... Rxd4 {[%clk
0:01:46.3]} 42. b5 {[%clk 0:00:12.4]} 42... cxb5 {[%clk 0:01:46.1]} 43. cxb5
{[%clk 0:00:14.3]} 43... Bd3 {[%clk 0:01:46.6]} 44. Ra5 {[%clk 0:00:15.4]} 44...
Rd5 {[%clk 0:01:47.6]} 45. Kc3 {[%clk 0:00:15.6]} 45... Rxb5 {[%clk 0:01:47.8]}
46. Ra7 {[%clk 0:00:12.3]} 46... Be4 {[%clk 0:01:48.4]} 47. Rxg7 {[%clk
0:00:12.9]} 47... Kxh4 {[%clk 0:01:49.7]} 48. Kd4 {[%clk 0:00:13.7]} 48... Rb3
{[%clk 0:01:48.5]} 49. Ke5 {[%clk 0:00:14.3]} 49... h5 {[%clk 0:01:49.4]} 50.
Rg1 {[%clk 0:00:12.4]} 50... Rg3 {[%clk 0:01:50.5]} 51. Rf1 {[%clk 0:00:12.9]}
51... Kg4 {[%clk 0:01:48.4]} 52. Rf4+ {[%clk 0:00:14.3]} 52... Kg5 {[%clk
0:01:49.8]} 0-1

[Event "*** Titled Tuesday Blitz"]
[Site "Chess.com"]
[Date "2018.11.06"]
[Round "4"]
[White "m3alam"]
[Black "DonPreuss"]
[Result "1-0"]
[WhiteElo "2129"]
[BlackElo "2114"]
[TimeControl "180+2"]
[EndTime "13:52:21 PST"]
[Termination "m3alam won by resignation"]

1. d4 {[%clk 0:03:01.9]} 1... Nc6 {[%clk 0:02:59.8]} 2. Nf3 {[%clk 0:03:03.2]}
2... d6 {[%clk 0:02:56.4]} 3. d5 {[%clk 0:03:02.5]} 3... Ne5 {[%clk 0:02:56.6]}
4. Nxe5 {[%clk 0:03:03.6]} 4... dxe5 {[%clk 0:02:58.5]} 5. e4 {[%clk 0:03:05.1]}
5... e6 {[%clk 0:02:58.5]} 6. dxe6 {[%clk 0:03:03.8]} 6... Bxe6 {[%clk
0:02:59.2]} 7. Bd3 {[%clk 0:03:03.2]} 7... Nf6 {[%clk 0:02:57.2]} 8. O-O {[%clk
0:03:03.4]} 8... Bc5 {[%clk 0:02:57.1]} 9. Nd2 {[%clk 0:02:59.3]} 9... h6 {[%clk
0:02:55.2]} 10. Nf3 {[%clk 0:03:00]} 10... Bg4 {[%clk 0:02:52.8]} 11. h3 {[%clk
0:02:59.8]} 11... Bh5 {[%clk 0:02:51.7]} 12. g4 {[%clk 0:03:00.4]} 12... Nxg4
{[%clk 0:02:52.7]} 13. hxg4 {[%clk 0:02:54.2]} 13... Bxg4 {[%clk 0:02:54.6]} 14.
Kg2 {[%clk 0:02:54.9]} 14... Qf6 {[%clk 0:02:50.7]} 15. Be3 {[%clk 0:02:54.1]}
15... Bb6 {[%clk 0:02:43.1]} 16. Qe2 {[%clk 0:02:51.6]} 16... h5 {[%clk
0:02:38]} 17. Bxb6 {[%clk 0:02:51]} 17... axb6 {[%clk 0:02:37.9]} 18. Qe3 {[%clk
0:02:51.9]} 18... Rh6 {[%clk 0:02:34.8]} 19. Nh2 {[%clk 0:02:39.2]} 19... Rg6
{[%clk 0:02:28.8]} 20. Kh1 {[%clk 0:02:27]} 20... O-O-O {[%clk 0:01:54.9]} 21.
f3 {[%clk 0:02:20.1]} 21... Bh3 {[%clk 0:01:55.4]} 22. Rg1 {[%clk 0:02:21]}
22... Qh4 {[%clk 0:01:30.1]} 23. Rxg6 {[%clk 0:02:18.3]} 23... fxg6 {[%clk
0:01:32]} 24. Rg1 {[%clk 0:02:18.3]} 24... Rf8 {[%clk 0:01:28.7]} 25. Qg5 {[%clk
0:02:16.8]} 25... Qf2 {[%clk 0:01:23.7]} 26. Qg3 {[%clk 0:02:17.1]} 26... Qxg3
{[%clk 0:01:19]} 27. Rxg3 {[%clk 0:02:17.6]} 27... Be6 {[%clk 0:01:20.7]} 28.
Rxg6 {[%clk 0:02:17.5]} 28... Bxa2 {[%clk 0:01:19]} 29. b3 {[%clk 0:02:18.3]}
29... Rf7 {[%clk 0:01:16.9]} 30. Kg2 {[%clk 0:02:15.6]} 30... c6 {[%clk
0:01:16.9]} 31. Nf1 {[%clk 0:02:15.8]} 31... Rd7 {[%clk 0:00:57.8]} 32. Bc4
{[%clk 0:02:09.7]} 32... Kc7 {[%clk 0:00:54]} 33. Kf2 {[%clk 0:02:04.1]} 33...
Bb1 {[%clk 0:00:52.8]} 34. Ne3 {[%clk 0:02:02.8]} 34... Rd2+ {[%clk 0:00:51]}
35. Be2 {[%clk 0:02:02.8]} 35... Bxc2 {[%clk 0:00:49.8]} 36. Nxc2 {[%clk
0:02:03.2]} 36... Rxc2 {[%clk 0:00:50.2]} 37. Rxg7+ {[%clk 0:02:04.5]} 37... Kd6
{[%clk 0:00:43.9]} 38. Rg6+ {[%clk 0:02:04.1]} 38... Kc5 {[%clk 0:00:44.3]} 39.
Re6 {[%clk 0:01:59.3]} 39... Kd4 {[%clk 0:00:44.5]} 40. Rd6+ {[%clk 0:02:00.2]}
40... Kc5 {[%clk 0:00:45.5]} 41. Rd7 {[%clk 0:01:57.1]} 41... Rb2 {[%clk
0:00:42.4]} 42. Rxb7 {[%clk 0:01:56.1]} 42... Rxb3 {[%clk 0:00:42.6]} 43. Rh7
{[%clk 0:01:57.4]} 43... Kd4 {[%clk 0:00:38.1]} 44. Rxh5 {[%clk 0:01:57.4]}
44... c5 {[%clk 0:00:39.4]} 45. Rh8 {[%clk 0:01:56.8]} 45... c4 {[%clk
0:00:39.8]} 46. Rd8+ {[%clk 0:01:57.3]} 46... Kc3 {[%clk 0:00:40.9]} 47. Rd5
{[%clk 0:01:58.3]} 47... b5 {[%clk 0:00:37]} 48. Rxe5 {[%clk 0:01:59]} 48... Kb2
{[%clk 0:00:37.1]} 49. Bd1 {[%clk 0:01:51.3]} 49... Rd3 {[%clk 0:00:36]} 50.
Rxb5+ {[%clk 0:01:51.2]} 50... Kc3 {[%clk 0:00:37]} 51. Be2 {[%clk 0:01:51.8]}
51... Rd2 {[%clk 0:00:37.1]} 52. Rc5 {[%clk 0:01:51.7]} 52... Kd4 {[%clk
0:00:36.9]} 53. Rxc4+ {[%clk 0:01:52.3]} 53... Ke5 {[%clk 0:00:38.3]} 54. Rc5+
{[%clk 0:01:53.1]} 54... Kd4 {[%clk 0:00:35.1]} 1-0

[Event "*** Titled Tuesday Blitz"]
[Site "Chess.com"]
[Date "2018.11.06"]
[Round "4"]
[White "Barcelona_Guy"]
[Black "gmcorrales"]
[Result "0-1"]
[WhiteElo "2474"]
[BlackElo "2732"]
[TimeControl "180+2"]
[EndTime "13:52:30 PST"]
[Termination "gmcorrales won by resignation"]

1. d4 {[%clk 0:03:01.9]} 1... c6 {[%clk 0:02:59.7]} 2. e4 {[%clk 0:02:59.1]}
2... d5 {[%clk 0:03:00.7]} 3. Nd2 {[%clk 0:02:58.9]} 3... dxe4 {[%clk
0:03:01.7]} 4. Nxe4 {[%clk 0:03:00.8]} 4... Bf5 {[%clk 0:03:03.4]} 5. Ng3 {[%clk
0:03:01.3]} 5... Bg6 {[%clk 0:03:04.7]} 6. Bc4 {[%clk 0:03:00.4]} 6... e6 {[%clk
0:03:05.7]} 7. N1e2 {[%clk 0:03:01.4]} 7... Bd6 {[%clk 0:03:06.3]} 8. Be3 {[%clk
0:02:57.5]} 8... Nf6 {[%clk 0:03:07.5]} 9. Nf4 {[%clk 0:02:54.9]} 9... O-O
{[%clk 0:03:07.3]} 10. Nxg6 {[%clk 0:02:49.6]} 10... hxg6 {[%clk 0:03:01.8]} 11.
Qe2 {[%clk 0:02:50.9]} 11... Nbd7 {[%clk 0:02:58.8]} 12. O-O-O {[%clk
0:02:50.2]} 12... b5 {[%clk 0:02:50.1]} 13. Bd3 {[%clk 0:02:50.8]} 13... Qa5
{[%clk 0:02:50.4]} 14. Kb1 {[%clk 0:02:51.6]} 14... Nb6 {[%clk 0:02:49.7]} 15.
h4 {[%clk 0:02:49.4]} 15... Nfd5 {[%clk 0:02:49.7]} 16. h5 {[%clk 0:02:43.5]}
16... Na4 {[%clk 0:02:50.3]} 17. Bd2 {[%clk 0:02:36.7]} 17... Bb4 {[%clk
0:02:28.9]} 18. hxg6 {[%clk 0:02:37.1]} 18... Bxd2 {[%clk 0:02:26.9]} 19. Ne4
{[%clk 0:01:12.2]} 19... Bh6 {[%clk 0:02:21]} 20. gxf7+ {[%clk 0:00:54.4]} 20...
Rxf7 {[%clk 0:02:20.2]} 21. Ka1 {[%clk 0:00:42.4]} 21... Qb4 {[%clk 0:02:14.2]}
22. c3 {[%clk 0:00:41.5]} 22... Qe7 {[%clk 0:02:11.7]} 23. g3 {[%clk 0:00:42.6]}
23... Kf8 {[%clk 0:02:09.8]} 24. Rh5 {[%clk 0:00:39.2]} 24... Ke8 {[%clk
0:02:10.2]} 25. Re5 {[%clk 0:00:39.5]} 25... Kd7 {[%clk 0:02:08.9]} 26. Nc5+
{[%clk 0:00:38.6]} 26... Nxc5 {[%clk 0:02:09.7]} 27. dxc5 {[%clk 0:00:40.5]}
27... Qxc5 {[%clk 0:02:07.7]} 28. Rxe6 {[%clk 0:00:39.4]} 28... Rxf2 {[%clk
0:02:02.8]} 29. Qe5 {[%clk 0:00:32.4]} 29... Raf8 {[%clk 0:01:54]} 30. Bxb5
{[%clk 0:00:25.8]} 30... Qxb5 {[%clk 0:01:47.1]} 31. c4 {[%clk 0:00:21.5]} 31...
Qxb2+ {[%clk 0:01:47.7]} 32. Qxb2 {[%clk 0:00:22.1]} 32... Rxb2 {[%clk
0:01:49.4]} 33. cxd5 {[%clk 0:00:22.8]} 33... Rd2 {[%clk 0:01:46.7]} 34. Rxd2
{[%clk 0:00:20]} 34... Bxd2 {[%clk 0:01:46.7]} 35. Rxc6 {[%clk 0:00:21.9]} 35...
Rb8 {[%clk 0:01:45.6]} 36. a4 {[%clk 0:00:20]} 36... Bg5 {[%clk 0:01:45.8]} 37.
Ka2 {[%clk 0:00:18.9]} 37... Bf6 {[%clk 0:01:46.7]} 38. Ra6 {[%clk 0:00:18.5]}
38... Bd4 {[%clk 0:01:46.8]} 39. Re6 {[%clk 0:00:14]} 39... Rb2+ {[%clk
0:01:47.6]} 40. Ka3 {[%clk 0:00:14.8]} 40... Rg2 {[%clk 0:01:49.2]} 41. Rg6
{[%clk 0:00:08.8]} 41... Bf6 {[%clk 0:01:50]} 42. Kb4 {[%clk 0:00:09]} 42... Kd6
{[%clk 0:01:51.5]} 43. Kc4 {[%clk 0:00:09.4]} 43... Rc2+ {[%clk 0:01:52.1]} 44.
Kb4 {[%clk 0:00:07.1]} 44... Rd2 {[%clk 0:01:53.3]} 45. Rg4 {[%clk 0:00:07.9]}
45... Rd4+ {[%clk 0:01:54.1]} 46. Rxd4 {[%clk 0:00:08.2]} 46... Bxd4 {[%clk
0:01:55.1]} 47. Kc4 {[%clk 0:00:10.1]} 47... Be5 {[%clk 0:01:56.3]} 48. g4
{[%clk 0:00:11.5]} 48... g5 {[%clk 0:01:57.2]} 49. a5 {[%clk 0:00:12.2]} 0-1

[Event "*** Titled Tuesday Blitz"]
[Site "Chess.com"]
[Date "2018.11.06"]
[Round "4"]
[White "Alliswell998"]
[Black "ozates"]
[Result "0-1"]
[WhiteElo "2534"]
[BlackElo "2339"]
[TimeControl "180+2"]
[EndTime "13:52:40 PST"]
[Termination "ozates won by resignation"]

1. e4 {[%clk 0:03:01.9]} 1... e5 {[%clk 0:02:57.1]} 2. Nf3 {[%clk 0:03:01.4]}
2... Nc6 {[%clk 0:02:51.6]} 3. Bc4 {[%clk 0:03:02]} 3... Nf6 {[%clk 0:02:46.2]}
4. d3 {[%clk 0:03:02.3]} 4... Be7 {[%clk 0:02:47]} 5. Nbd2 {[%clk 0:03:01.2]}
5... O-O {[%clk 0:02:48]} 6. Bb3 {[%clk 0:02:58.4]} 6... d6 {[%clk 0:02:48.4]}
7. c3 {[%clk 0:02:59.2]} 7... h6 {[%clk 0:02:46]} 8. O-O {[%clk 0:02:55.4]} 8...
Kh8 {[%clk 0:02:46.9]} 9. Re1 {[%clk 0:02:53]} 9... Ng8 {[%clk 0:02:47.7]} 10.
d4 {[%clk 0:02:46.3]} 10... Bf6 {[%clk 0:02:35]} 11. Nf1 {[%clk 0:02:40.5]}
11... exd4 {[%clk 0:02:33.2]} 12. cxd4 {[%clk 0:02:40.3]} 12... Bg4 {[%clk
0:02:34.7]} 13. Be3 {[%clk 0:02:14.1]} 13... Bxf3 {[%clk 0:02:34]} 14. gxf3
{[%clk 0:02:16]} 14... Qd7 {[%clk 0:02:33.8]} 15. Ng3 {[%clk 0:02:13.1]} 15...
Nge7 {[%clk 0:02:34.5]} 16. d5 {[%clk 0:01:59.5]} 16... Ne5 {[%clk 0:02:30.1]}
17. f4 {[%clk 0:01:57.8]} 17... Ng4 {[%clk 0:02:28.2]} 18. Bd4 {[%clk
0:01:57.8]} 18... Ng6 {[%clk 0:02:24.7]} 19. f3 {[%clk 0:01:48.4]} 19... Bxd4+
{[%clk 0:02:06.2]} 20. Qxd4 {[%clk 0:01:50.3]} 20... Nf6 {[%clk 0:02:03.2]} 21.
Qd2 {[%clk 0:01:14.8]} 21... Rae8 {[%clk 0:01:57.6]} 22. Nf5 {[%clk 0:01:14.2]}
22... Ne7 {[%clk 0:01:54.5]} 23. Nd4 {[%clk 0:01:06]} 23... Nh5 {[%clk
0:01:47.4]} 24. f5 {[%clk 0:01:04.5]} 24... Ng8 {[%clk 0:01:40.2]} 25. Kh1
{[%clk 0:00:55.6]} 25... Qe7 {[%clk 0:01:40.8]} 26. Rg1 {[%clk 0:00:48.8]} 26...
Qe5 {[%clk 0:01:36.1]} 27. Rad1 {[%clk 0:00:33.6]} 27... Ngf6 {[%clk 0:01:37]}
28. Qg2 {[%clk 0:00:31.7]} 28... Rg8 {[%clk 0:01:36.1]} 29. Ba4 {[%clk 0:00:32]}
29... Re7 {[%clk 0:01:36.9]} 30. Ne2 {[%clk 0:00:30.9]} 30... Qxb2 {[%clk
0:01:34.9]} 31. Rb1 {[%clk 0:00:30.9]} 31... Qxa2 {[%clk 0:01:35.2]} 32. Bd1
{[%clk 0:00:30.6]} 32... Qxb1 {[%clk 0:01:34.7]} 33. h4 {[%clk 0:00:23.8]} 33...
a5 {[%clk 0:01:32.2]} 34. Kh2 {[%clk 0:00:21.9]} 34... Qb4 {[%clk 0:01:27.4]}
35. Bc2 {[%clk 0:00:18.2]} 35... a4 {[%clk 0:01:27.5]} 36. Rb1 {[%clk
0:00:19.7]} 36... Qd2 {[%clk 0:01:26.7]} 37. Bxa4 {[%clk 0:00:20.8]} 37... Nf4
{[%clk 0:01:20.8]} 38. Nxf4 {[%clk 0:00:21.3]} 38... Qxf4+ {[%clk 0:01:22.7]}
39. Kg1 {[%clk 0:00:20.8]} 39... Ra8 {[%clk 0:01:20.5]} 40. Bd1 {[%clk
0:00:17.9]} 40... Nxd5 {[%clk 0:01:13.7]} 41. Rxb7 {[%clk 0:00:11.3]} 41... Ra1
{[%clk 0:01:10.8]} 42. Qf1 {[%clk 0:00:07.6]} 42... Qg3+ {[%clk 0:01:10.3]} 43.
Kh1 {[%clk 0:00:08.4]} 43... Ne3 {[%clk 0:01:09.1]} 44. Qc4 {[%clk 0:00:02.4]}
44... Rxd1+ {[%clk 0:01:08.3]} 45. Qf1 {[%clk 0:00:04.3]} 0-1